{"text_format":"1","workbook":"xlsx","n_sheets":1,"sheets":["List1"],"not_rendered":{"charts":0,"images":0,"macros":0,"external_links":0,"defined_names":0,"comments":0,"pivot_tables":0},"unopened":[],"bounds":{"document_bytes":16777216,"sheet_cells":100000,"rows_first":2000,"rows_last":500,"rows_between":2000,"halvings":0,"cell_chars":16384,"cell_head_chars":4096},"cells_cut":0,"cells_raw":0,"read":"whole","date_system":"1900"}

{"sheet":"List1","index":0,"n_rows":184,"n_cols":22,"rows_kept":184,"cut":false,"hidden":false,"merged":[[0,1,0,18]]}
["Příloha č. 2","Cenový potávaných metod odhad "]
["Označení metody","Pracoviště Náchod","Počet vzorků","Statim","Frekvence stanovení","Pracoviště Rychnov n/K","Počet vzorků","Statim","Frekvence stanovení","Pracoviště Broumov","Počet vzorků","Statim","Frekvence stanovení","Pracoviště Jaroměř","Počet vzorků","Statim","Frekvence stanovení","Pracoviště Opočno","Počet vzorků","Statim","Frekvence stanovení","CELKEM počet vzorků za všechny lokality"]
["Urea","ANO",61129,"ANO",365,"ANO",37971,"ANO",365,"ANO",22668,"ANO",365,"ANO",8636,"ANO","prac.dny","ANO",5914,"ANO","prac.dny",{"$f":"C3+G3+K3+O3+S3","v":136318}]
["Urea v moči","ANO",47,"ANO",365,"ANO",440,"ANO",365,"ANO",9,"ANO",365,null,null,"ANO","prac.dny","ANO",66,"ANO","prac.dny",562]
["Kreatinin","ANO",66180,"ANO",365,"ANO",42724,"ANO",365,"ANO",24003,"ANO",365,"ANO",9974,"ANO","prac.dny","ANO",8544,"ANO","prac.dny",151425]
["Kreatinin v moči","ANO",5385,"ANO",365,"ANO",2526,"ANO",365,"ANO",325,"ANO",365,"ANO",37,"ANO","prac.dny","ANO",3256,"ANO","prac.dny",11529]
["Cystatin C",null,null,null,null,"ANO",527,null,"prac.dny",null,null,null,null,null,null,null,null,null,null,null,null,527]
["Kyselina močová","ANO",23450,"ANO",365,"ANO",17271,"ANO",365,"ANO",10695,"ANO",365,"ANO",5994,"ANO","prac.dny","ANO",6508,"ANO","prac.dny",63918]
["Kyselina močová v moči","ANO",89,"ANO",365,"ANO",null,"ANO",365,"ANO",26,"ANO",365,null,null,null,null,"ANO",64,"ANO","prac.dny",179]
["Na+ (Sodík v séru, likvoru a punktátu)","ANO",62799,"ANO",365,"ANO",39163,"ANO",365,"ANO",25076,"ANO",365,"ANO",9717,"ANO","prac.dny","ANO",5478,"ANO","prac.dny",142233]
["Na+ (Sodík v moči)","ANO",75,"ANO",365,"ANO",447,"ANO",365,"ANO",63,"ANO",365,"ANO",11,"ANO","prac.dny","ANO",70,"ANO","prac.dny",666]
["K+ (Draslík v séru, likvoru a punktátu)","ANO",62799,"ANO",365,"ANO",40911,"ANO",365,"ANO",25076,"ANO",365,"ANO",9715,"ANO","prac.dny","ANO",5550,"ANO","prac.dny",144051]
["K+ (Draslík v moči)","ANO",75,"ANO",365,"ANO",442,"ANO",365,"ANO",63,"ANO",365,"ANO",11,"ANO","prac.dny","ANO",70,"ANO","prac.dny",661]
["Cl- (Chloridy v séru, likvoru a punktátu)","ANO",63124,"ANO",365,"ANO",25990,"ANO",365,"ANO",25073,"ANO",365,"ANO",9715,"ANO","prac.dny","ANO",5309,"ANO","prac.dny",129211]
["Cl- (Chloridy v moči)","ANO",45,"ANO",365,"ANO",433,"ANO",365,"ANO",63,"ANO",365,"ANO",11,"ANO","prac.dny",null,69,"ANO","prac.dny",621]
["Vápník","ANO",12491,"ANO",365,"ANO",4718,"ANO",365,"ANO",2330,"ANO",365,"ANO",1577,"ANO","prac.dny","ANO",996,"ANO","prac.dny",22112]
["Vápník v moči","ANO",1621,"ANO",365,"ANO",506,"ANO",365,"ANO",386,"ANO",365,"ANO",68,"ANO","prac.dny","ANO",88,"ANO","prac.dny",2669]
["Fosfor","ANO",8041,"ANO",365,"ANO",3362,"ANO",365,"ANO",1787,"ANO",365,"ANO",407,"ANO","prac.dny","ANO",315,"ANO","prac.dny",13912]
["Fosfor v moči","ANO",211,"ANO",365,null,442,"ANO",365,"ANO",382,"ANO",365,"ANO",53,"ANO","prac.dny","ANO",78,"ANO","prac.dny",1166]
["Hořčík","ANO",5655,"ANO",365,"ANO",3884,"ANO",365,"ANO",10972,"ANO",365,"ANO",1203,"ANO","prac.dny","ANO",216,"ANO","prac.dny",21930]
["Hořčík v moči","ANO",91,"ANO",365,null,233,"ANO",365,"ANO",92,"ANO",365,null,null,null,null,null,null,null,null,416]
["Železo celkové","ANO",4094,null,"prac.dny","ANO",2440,null,"prac.dny","ANO",1123,"ANO",365,"ANO",1364,"ANO","prac.dny","ANO",443,"ANO","prac.dny",9464]
["Vazebná kapacita železa","ANO",2378,null,"prac.dny","ANO",1550,null,"prac.dny","ANO",511,"ANO",365,"ANO",311,"ANO","prac.dny","ANO",153,"ANO","prac.dny",4903]
["Vitamin B12","ANO",3840,null,"prac.dny","ANO",1487,null,"prac.dny",null,null,null,null,null,null,null,null,null,null,null,null,5327]
["Kyselina listová (foláty)","ANO",3342,null,"prac.dny","ANO",1193,null,"prac.dny",null,null,null,null,null,null,null,null,null,null,null,null,4535]
["Homocystein","ANO",373,null,"prac.dny","ANO",385,"ANO","prac.dny",null,null,null,null,null,null,null,null,null,null,null,null,758]
["Bilirubin celkový","ANO",43273,"ANO",365,"ANO",23187,"ANO",365,"ANO",19305,"ANO",365,"ANO",6645,"ANO","prac.dny","ANO",4614,"ANO","prac.dny",97024]
["Bilirubin konjugovaný","ANO",12490,"ANO",365,"ANO",4201,"ANO",365,"ANO",3144,"ANO",365,"ANO",2044,"ANO","prac.dny","ANO",1952,"ANO","prac.dny",23831]
["Bilirubin novorozenecký","ANO",1060,"ANO",365,"ANO",690,"ANO",365,null,null,null,null,null,null,null,null,null,null,null,null,1750]
["ALT","ANO",52624,"ANO",365,"ANO",35393,"ANO",365,"ANO",20869,"ANO",365,"ANO",8022,"ANO","prac.dny","ANO",7759,"ANO","prac.dny",124667]
["AST","ANO",49606,"ANO",365,"ANO",33187,"ANO",365,"ANO",20742,"ANO",365,"ANO",7894,"ANO","prac.dny","ANO",7001,"ANO","prac.dny",118430]
["Gamaglutamyltransferáza (GGT)","ANO",34291,"ANO",365,"ANO",16169,"ANO",365,"ANO",13922,"ANO",365,"ANO",4717,"ANO","prac.dny","ANO",4157,"ANO","prac.dny",73256]
["Fosfatáza alkalická (ALP)","ANO",25989,"ANO",365,"ANO",13019,"ANO",365,"ANO",11614,"ANO",365,"ANO",3420,"ANO","prac.dny","ANO",2609,"ANO","prac.dny",56651]
["ALP-kostní (osteáza)",null,null,null,null,"ANO",23,null,"1xt",null,null,null,null,null,null,null,null,null,null,null,null,23]
["ELF score (Enhanced Liver Fibrosis)","ANO",129,null,"1x týdně",null,null,null,null,null,null,null,null,null,null,null,null,null,null,null,null,{"$f":"C35+G35+K35+O35+S35","v":129}]
["Laktátdehydrogenáza (LD) v séru, likvoru a punktátu","ANO",3348,"ANO",365,"ANO",1119,"ANO",365,"ANO",3171,"ANO",365,null,null,null,null,"ANO",211,"ANO","prac.dny",7849]
["Kreatinkináza (CK)","ANO",8186,"ANO",365,"ANO",5375,"ANO",365,"ANO",6020,"ANO",365,"ANO",1734,"ANO","prac.dny","ANO",486,"ANO","prac.dny",21801]
["CK-MB mass",null,null,null,null,"ANO",126,null,365,null,null,null,null,null,null,null,null,null,null,null,null,126]
["Myoglobin","ANO",2707,"ANO",365,"ANO",383,"ANO",365,"ANO",405,"ANO",365,null,null,null,null,null,null,null,null,3495]
["hs Troponin T nebo I","ANO",4315,"ANO",365,null,null,"ANO",365,"ANO",2055,"ANO",365,null,null,null,null,"ANO",23,null,"prac.dny",6393]
["Natriuretické peptidy (NT-proBNP)","ANO",1179,"ANO",365,"ANO",1819,"ANO",365,"ANO",2004,"ANO",365,null,null,null,null,null,null,null,null,5002]
["Amyláza v séru a punktátu","ANO",6563,"ANO",365,"ANO",3495,"ANO",365,"ANO",1528,"ANO",365,"ANO",800,"ANO",null,"ANO",335,"ANO","prac.dny",12721]
["Amyláza v moči","ANO",84,"ANO",365,"ANO",120,"ANO",365,null,318,"ANO",365,"ANO",54,"ANO",null,"ANO",45,"ANO","prac.dny",621]
["Pankreatická amyláza v séru",null,null,null,null,"ANO",2835,"ANO",365,null,null,null,null,null,null,null,null,null,null,null,null,2835]
["Pankreatická amyláza v moči",null,null,null,null,"ANO",52,"ANO",365,null,null,null,null,null,null,null,null,null,null,null,null,52]
["Lipáza v séru a punktátu","ANO",4698,"ANO",365,"ANO",3217,"ANO",365,null,null,null,null,null,null,null,null,null,null,null,null,7915]
["Cholinesterasa",null,null,null,null,"ANO",215,"ANO",365,null,null,null,null,null,null,null,null,null,null,null,null,215]
["Cholesterol celkový v séru a punktátu","ANO",24561,"ANO",365,"ANO",18748,"ANO",365,"ANO",12921,"ANO",365,"ANO",6494,"ANO","prac.dny","ANO",7059,"ANO","prac.dny",69783]
["Cholesterol HDL","ANO",19705,"ANO",365,"ANO",15700,null,365,"ANO",9824,"ANO",365,"ANO",5844,"ANO","prac.dny","ANO",6575,"ANO","prac.dny",57648]
["Cholesterol LDL","ANO",20377,"ANO",365,"ANO",16257,null,365,"ANO",9840,"ANO",365,"ANO",5849,"ANO","prac.dny","ANO",6462,"ANO","prac.dny",58785]
["Triacylglyceroly v séru a punktátu","ANO",22940,"ANO",365,"ANO",16461,"ANO",365,"ANO",12195,"ANO",365,"ANO",6146,"ANO","prac.dny","ANO",6992,"ANO","prac.dny",64734]
["Apolipoprotein A1","ANO",359,null,"prac.dny","ANO",467,null,"prac.dny",null,null,null,null,null,null,null,null,null,null,null,null,826]
["Apolipoprotein B","ANO",280,null,"prac.dny","ANO",468,null,"prac.dny",null,null,null,null,null,null,null,null,null,null,null,null,748]
["Lipoprotein (a)",null,null,null,null,"ANO",73,null,"prac.dny",null,null,null,null,null,null,null,null,null,null,null,null,73]
["Bílkovina celková v séru a punktátu","ANO",19228,"ANO",365,"ANO",6850,"ANO",365,"ANO",5236,"ANO",365,"ANO",2248,"ANO","prac.dny","ANO",370,"ANO","prac.dny",33932]
["Bílkovina celková v moči","ANO",1428,"ANO",365,"ANO",588,"ANO",365,"ANO",2393,"ANO",365,"ANO",1413,"ANO","prac.dny","ANO",84,"ANO","prac.dny",5906]
["Bílkovina celková v likvoru","ANO",334,"ANO",365,"ANO",112,"ANO",365]
["Prealbumin","ANO",526,"ANO",365,"ANO",216,"ANO",365,null,null,null,null,null,null,null,null,null,null,null,null,{"$f":"C58+G58+K58+O58+S58","v":742}]
["Albumin v séru a puktátu","ANO",7661,"ANO",365,"ANO",2340,"ANO",365,"ANO",4525,"ANO",365,"ANO",241,"ANO","prac.dny","ANO",338,"ANO","prac.dny",{"$f":"C59+G59+K59+O59+S59","v":15105}]
["Albumin v moči","ANO",2592,"ANO",365,"ANO",2306,"ANO",365,"ANO",54,"ANO",365,null,null,null,null,"ANO",3174,"ANO","prac.dny",{"$f":"C60+G60+K60+O60+S60","v":8126}]
["Albumin v likvoru",null,7,"ANO",365,"ANO",26,"ANO",365]
["Haptoglobin","ANO",141,null,"prac.dny",null,null,null,null,null,null,null,null,null,null,null,null,null,null,null,null,{"$f":"C62+G62+K62+O62+S62","v":141}]
["Transferin","ANO",2804,null,"prac.dny","ANO",540,null,"prac.dny","ANO",531,"ANO",365,"ANO",325,"ANO","prac.dny","ANO",168,"ANO","prac.dny",4368]
["Solubilní transferinový receptor","ANO",318,null,"prac.dny","ANO",421,null,"prac.dny",null,null,null,null,null,null,null,null,null,null,null,null,739]
["C3 složka komplementu","ANO",82,null,"prac.dny","ANO",32,null,"prac.dny",null,null,null,null,null,null,null,null,null,null,null,null,114]
["C4 složka komplementu","ANO",95,null,"prac.dny","ANO",33,null,"prac.dny",null,null,null,null,null,null,null,null,null,null,null,null,128]
["Beta-2-mikroglobulin","ANO",638,null,"prac.dny","ANO",78,null,"prac.dny",null,null,null,null,null,null,null,null,null,null,null,null,716]
["IgG v séru","ANO",2155,null,"prac.dny","ANO",615,null,"prac.dny",null,null,null,null,null,null,null,null,"ANO",219,"ANO","prac.dny",2989]
["IgG v likvoru",null,null,null,null,"ANO",17,null,"prac.dny"]
["IgA v séru","ANO",1783,null,"prac.dny","ANO",631,null,"prac.dny",null,null,null,null,null,null,null,null,"ANO",260,"ANO","prac.dny",{"$f":"C70+G70+K70+O70+S70","v":2674}]
["IgA v likvoru",null,null,null,null,"ANO",16,null,"prac.dny"]
["IgM","ANO",1766,null,"prac.dny","ANO",612,null,"prac.dny",null,null,null,null,null,null,null,null,"ANO",220,"ANO","prac.dny",{"$f":"C72+G72+K72+O72+S72","v":2598}]
["IgM v likvoru",null,null,null,null,"ANO",17,null,"prac.dny"]
["IgE","ANO",1420,null,"prac.dny","ANO",271,null,"prac.dny",null,null,null,null,null,null,null,null,null,null,null,null,{"$f":"C74+G74+K74+O74+S74","v":1691}]
["Eozinofilní kationový protein (ECP)","ANO",372,null,"1x týdně",null,null,null,null,null,null,null,null,null,null,null,null,null,null,null,null,372]
["C-reaktivní protein","ANO",40700,"ANO",365,"ANO",29874,"ANO",365,"ANO",15589,"ANO",365,"ANO",4776,null,"prac.dny","ANO",3427,"ANO","prac.dny",94366]
["CIK (cirkulující imunokomplexy)",null,null,null,null,"ANO",147,null,"prac.dny",null,null,null,null,null,null,null,null,null,null,null,null,147]
["Prokalcitonin","ANO",2981,"ANO",365,"ANO",279,"ANO",365,null,null,null,null,null,null,null,null,null,null,null,null,3260]
["Interleukin 6","ANO",171,"ANO",365,"ANO",9,"ANO",365,null,null,null,null,null,null,null,null,null,null,null,null,180]
["Revmatoidní faktor v séru a punktátu","ANO",1828,null,"prac.dny","ANO",1083,null,"prac.dny",null,null,null,null,"ANO",299,null,"prac.dny","ANO",217,null,"prac.dny",3427]
["Antistreptolyzin O (ASLO) v séru a punktátu","ANO",1500,null,"prac.dny","ANO",692,null,"prac.dny",null,null,null,null,"ANO",279,null,"prac.dny","ANO",244,null,"prac.dny",2715]
["Anti-CCP",null,null,null,null,"ANO",325,null,"prac.dny",null,null,null,null,null,null,null,null,null,null,null,null,325]
["Glukóza v séru, plazmě, likvoru a punktátu","ANO",123942,"ANO",365,"ANO",40812,"ANO",365,"ANO",30832,"ANO",365,"ANO",12150,null,"prac.dny","ANO",10951,null,"prac.dny",218687]
["Glukóza v moči","ANO",521,"ANO",365,"ANO",388,null,365,"ANO",2359,"ANO",365,"ANO",1166,null,"prac.dny","ANO",4539,null,"prac.dny",8973]
["Glukóza - hemolyzát","ANO",1195,"ANO",365,null,null,null,null,"ANO",19475,"ANO",365,"ANO",1868,null,"prac.dny","ANO",2542,null,"prac.dny",25080]
["Kyselina valproová",null,null,null,null,"ANO",84,"ANO","prac.dny",null,null,null,null,null,null,null,null,null,null,null,null,84]
["Carbamazepin",null,null,null,null,"ANO",23,"ANO","prac.dny",null,null,null,null,null,null,null,null,null,null,null,null,23]
["Lacosamid","ANO",16,null,"1x týdně",null,null,null,null,null,null,null,null,null,null,null,null,null,null,null,null,16]
["Lamotrigin","ANO",88,null,"1x týdně",null,null,null,null,null,null,null,null,null,null,null,null,null,null,null,null,88]
["Levetiracetam","ANO",113,null,"1x týdně",null,null,null,null,null,null,null,null,null,null,null,null,null,null,null,null,113]
["Digoxin","ANO",498,"ANO",365,"ANO",769,"ANO",365,"ANO",342,"ANO",365,null,null,null,null,null,null,null,null,1609]
["Teofylin","ANO",138,"ANO",365,"ANO",193,"ANO",365,"ANO",175,"ANO",365,null,null,null,null,null,null,null,null,506]
["Gentamycin","ANO",107,"ANO",365,"ANO",103,"ANO",365,null,null,null,null,null,null,null,null,null,null,null,null,210]
["Vankomycin","ANO",102,"ANO",365,null,null,null,null,null,null,null,null,null,null,null,null,null,null,null,null,102]
["Etanol","ANO",522,"ANO",365,"ANO",710,"ANO",365,"ANO",171,"ANO",365,null,null,null,null,null,null,null,null,1403]
["Tyreotropin (TSH)","ANO",20817,null,"prac.dny","ANO",12608,"ANO",365,"ANO",14188,"ANO",365,"ANO",6146,"ANO","prac.dny","ANO",4865,"ANO","prac.dny",58624]
["Trijodtyronin celkový (TT3)",null,null,null,null,"ANO",129,null,"prac.dny",null,null,null,null,null,null,null,null,null,null,null,null,129]
["Trijodtyronin volný (FT3)","ANO",678,null,"prac.dny","ANO",1400,null,"prac.dny","ANO",969,"ANO",365,null,null,null,null,"ANO",1578,"ANO","prac.dny",4625]
["Tyroxin volný (FT4)","ANO",9939,null,"prac.dny","ANO",3213,null,"prac.dny","ANO",7347,"ANO",365,"ANO",2327,"ANO","prac.dny","ANO",2130,"ANO","prac.dny",24956]
["Thyreoglobulin","ANO",206,null,"1x týdně","ANO",71,null,"2x týdně",null,null,null,null,null,null,null,null,null,null,null,null,277]
["Autoprotilátky proti mikrosomálnímu antigenu (Anti-TPO)","ANO",1695,null,"prac.dny","ANO",232,null,"2x týdně",null,null,null,null,null,null,null,null,null,null,null,null,1927]
["Autoprotilátky proti tyreoglobulinu (Anti-TG)","ANO",1404,null,"prac.dny","ANO",154,null,"2x týdně",null,null,null,null,null,null,null,null,null,null,null,null,1558]
["TSI (TSH receptor Stimulating Imunoglobulins)","ANO",364,null,"1x týdně",null,null,null,null,null,null,null,null,null,null,null,null,null,null,null,null,364]
["TPS v séru a punktátu",null,null,null,null,null,240,null,null,null,null,null,null,null,null,null,null,null,null,null,null,240]
["Choriogonadotropin (HCG)","ANO",791,"ANO",365,null,null,null,null,null,null,null,null,null,null,null,null,"ANO",51,"ANO","prac.dny",842]
["Choriogonadotropin (HCG) - intaktní + beta",null,null,null,null,"ANO",477,"ANO",365]
["Folitropin (FSH)","ANO",536,null,"1x týdně","ANO",105,null,"2x týdně",null,null,null,null,null,null,null,null,null,null,null,null,{"$f":"C107+G107+K107+O107+S107","v":641}]
["Lutropin (LH)","ANO",454,null,"1x týdně","ANO",116,null,"2x týdně",null,null,null,null,null,null,null,null,null,null,null,null,570]
["Prolaktin","ANO",521,null,"1x týdně","ANO",185,null,"2x týdně",null,null,null,null,null,null,null,null,null,null,null,null,706]
["Estradiol","ANO",331,null,"1x týdně","ANO",69,null,"2x týdně",null,null,null,null,null,null,null,null,null,null,null,null,400]
["Progesteron","ANO",220,null,"1x týdně","ANO",159,null,"2x týdně",null,null,null,null,null,null,null,null,null,null,null,null,379]
["Testosteron celkový","ANO",471,null,"1x týdně","ANO",213,null,"2x týdně",null,null,null,null,null,null,null,null,null,null,null,null,684]
["Testosteron volný",null,null,null,null,null,75,null,null,null,null,null,null,null,null,null,null,null,null,null,null,75]
["Sex hormone binding globulin (SHBG)","ANO",136,null,"1x týdně","ANO",50,null,"2x týdně",null,null,null,null,null,null,null,null,null,null,null,null,186]
["Preeklampsie","ANO",148,"ANO",365,null,null,null,null,null,null,null,null,null,null,null,null,null,null,null,null,148]
["Kortizol v séru","ANO",545,null,"1x týdně","ANO",138,null,"2x týdně",null,null,null,null,null,null,null,null,null,null,null,null,683]
["Kortizol v moči","ANO",44,null,"1x týdně","ANO",19,null,"2x týdně",null,null,null,null,null,null,null,null,null,null,null,null,63]
["Spojovací peptid proinzulinu (C-peptid)","ANO",677,null,"1x týdně","ANO",219,null,"2x týdně",null,null,null,null,null,null,null,null,null,null,null,null,896]
["Prostatický specifický antigen (PSA)","ANO",5731,null,"prac.dny","ANO",4312,null,"prac.dny","ANO",2503,null,365,"ANO",1957,null,"prac.dny","ANO",1356,null,"prac.dny",15859]
["Prostatický specifický antigen (PSA) - volný","ANO",961,null,"prac.dny","ANO",1574,null,"prac.dny","ANO",628,null,365,"ANO",818,null,"prac.dny","ANO",290,null,"prac.dny",4271]
["proPSA",null,null,null,null,"ANO",78,null,"prac.dny",null,null,null,null,null,null,null,null,null,null,null,null,78]
["Alfa-1-fetoprotein (AFP)","ANO",697,null,"prac.dny","ANO",429,null,"prac.dny",null,null,null,null,null,null,null,null,null,null,null,null,1126]
["Karcinoembryonalni antigen (CEA) v séru a punktátu","ANO",3339,null,"prac.dny","ANO",991,null,"prac.dny",null,null,null,null,null,null,null,null,null,null,null,null,4330]
["Carbohydrate antigen 15-3","ANO",1286,null,"prac.dny","ANO",176,null,"prac.dny",null,null,null,null,null,null,null,null,null,null,null,null,1462]
["Carbohydrate antigen 19-9","ANO",2153,null,"prac.dny","ANO",1029,null,"prac.dny",null,null,null,null,null,null,null,null,null,null,null,null,3182]
["Carbohydrate antigen 72-4","ANO",1013,null,"prac.dny","ANO",139,null,"prac.dny",null,null,null,null,null,null,null,null,null,null,null,null,1152]
["Carbohydrate antigen 125","ANO",943,null,"prac.dny","ANO",314,null,"prac.dny",null,null,null,null,null,null,null,null,null,null,null,null,1257]
["HE4 (Human Epididymal protein 4)","ANO",105,null,"prac.dny",null,null,null,null,null,null,null,null,null,null,null,null,null,null,null,null,105]
["ROMA score","ANO",102,null,"prac.dny",null,null,null,null,null,null,null,null,null,null,null,null,null,null,null,null,102]
["SCC antigen",null,null,null,null,"ANO",21,null,"2x týdně",null,null,null,null,null,null,null,null,null,null,null,null,21]
["Cytokeratin fragment 21-1 (CYFRA) v séru a punktátu","ANO",363,null,"prac.dny","ANO",17,null,"2x týdně",null,null,null,null,null,null,null,null,null,null,null,null,380]
["NSE","ANO",322,null,"prac.dny","ANO",26,null,"2x týdně",null,null,null,null,null,null,null,null,null,null,null,null,348]
["Feritin","ANO",3831,"ANO",365,"ANO",2144,null,365,null,null,null,null,null,null,null,null,null,null,null,null,5975]
["Parathormon intaktní","ANO",4272,null,"prac.dny","ANO",null,null,"2x týdně",null,null,null,null,null,null,null,null,null,null,null,null,4272]
["Osteokalcin","ANO",2031,null,"prac.dny","ANO",32,null,"2x týdně",null,null,null,null,null,null,null,null,null,null,null,null,2063]
["Beta-CrossLaps","ANO",1854,null,"prac.dny","ANO",null,null,"2x týdně",null,null,null,null,null,null,null,null,null,null,null,null,1854]
["Prokolagen typ I (Propeptid prokolagenu I)","ANO",608,null,"prac.dny","ANO",null,null,"2x týdně",null,null,null,null,null,null,null,null,null,null,null,null,608]
["Deoxypyridinolin",null,null,null,null,null,24,null,null,null,null,null,null,null,null,null,null,null,null,null,null,24]
["25-hydroxyvitamin D","ANO",3093,null,"prac.dny","ANO",1579,null,"prac.dny",null,null,null,null,null,null,null,null,null,null,null,null,{"$f":"C139+G139+K139+O139+S139","v":4672}]
["Laktát v plazmě","ANO",892,"ANO",365,"ANO",1237,"ANO",365,"ANO",232,null,365,null,null,null,null,null,null,null,null,2361]
["Laktát v likvoru, puktátu","ANO",337,"ANO",365,"ANO",48,"ANO",365,null,null,null,null,null,null,null,null,null,null,null,null,385]
["Adrenokortikotropin (ACTH)","ANO",82,null,"1x týdně","ANO",65,null,"2x týdně",null,null,null,null,null,null,null,null,null,null,null,null,147]
["Amoniak",null,null,null,null,"ANO",78,"ANO",365,null,null,null,null,null,null,null,null,null,null,null,null,78]
["Hemoglobin ve stolici",null,null,null,null,"ANO",155,null,"prac.dny",null,null,null,null,null,null,null,null,null,null,null,null,155]
["Sérové indexy","ANO",93354,null,365,"ANO",null,null,365,"ANO",32147,null,365,"ANO",15893,null,"prac.dny","ANO",15978,null,"prac.dny",157372]
["Specifické IgE proti: trávy I (směs)","ANO",104,null,"1x týdně",null,null,null,null,null,null,null,null,null,null,null,null,null,null,null,null,104]
["Specifické IgE proti: směs roztoči","ANO",237,null,"1x týdně",null,null,null,null,null,null,null,null,null,null,null,null,null,null,null,null,237]
["Specifické IgE proti: směs plísně","ANO",34,null,"1x týdně",null,null,null,null,null,null,null,null,null,null,null,null,null,null,null,null,34]
["Specifické IgE proti: směs stromy 9","ANO",108,null,"1x týdně",null,null,null,null,null,null,null,null,null,null,null,null,null,null,null,null,108]
["Specifické IgE proti: kočka - srst","ANO",51,null,"1x týdně",null,null,null,null,null,null,null,null,null,null,null,null,null,null,null,null,51]
["Specifické IgE proti: pes - epitelie","ANO",43,null,"1x týdně",null,null,null,null,null,null,null,null,null,null,null,null,null,null,null,null,43]
["Specifické IgE proti: vaječný bílek","ANO",61,null,"1x týdně",null,null,null,null,null,null,null,null,null,null,null,null,null,null,null,null,61]
["Specifické IgE proti: mléko kravské","ANO",137,null,"1x týdně",null,null,null,null,null,null,null,null,null,null,null,null,null,null,null,null,137]
["Specifické IgE proti: mouka pšeničná","ANO",86,null,"1x týdně",null,null,null,null,null,null,null,null,null,null,null,null,null,null,null,null,86]
["Specifické IgE proti: vaječný žloutek","ANO",39,null,"1x týdně",null,null,null,null,null,null,null,null,null,null,null,null,null,null,null,null,39]
["Specifické IgE proti: gluten - lepek","ANO",80,null,"1x týdně",null,null,null,null,null,null,null,null,null,null,null,null,null,null,null,null,80]
["Specifické IgE proti: včela medonosná","ANO",30,null,"1x týdně",null,null,null,null,null,null,null,null,null,null,null,null,null,null,null,null,30]
["Specifické IgE proti: vosa obecná","ANO",34,null,"1x týdně",null,null,null,null,null,null,null,null,null,null,null,null,null,null,null,null,34]
["Specifické IgE proti: Aspergillus fumigatus","ANO",17,null,"1x týdně",null,null,null,null,null,null,null,null,null,null,null,null,null,null,null,null,17]
["Specifické IgE proti: Alternaria tenui","ANO",34,null,"1x týdně",null,null,null,null,null,null,null,null,null,null,null,null,null,null,null,null,34]
["Specifické IgE proti: pyl pelyněk černobýl (Artemisia vulgaris)","ANO",12,null,"1x týdně",null,null,null,null,null,null,null,null,null,null,null,null,null,null,null,null,12]
["Anti HAV  IgG+IgM",null,null,null,null,"ANO",338,null,"2x týdně",null,null,null,null,null,null,null,null,null,null,null,null,338]
["Anti HAV IgM",null,null,null,null,"ANO",134,null,"2x týdně",null,null,null,null,null,null,null,null,null,null,null,null,134]
["HBsAg (Australský antigen)",null,null,null,null,"ANO",693,null,"2x týdně",null,null,null,null,null,null,null,null,null,null,null,null,693]
["HBsAg - konfirmace",null,null,null,null,"ANO",4,null,"2x týdně",null,null,null,null,null,null,null,null,null,null,null,null,4]
["Anti HBs",null,null,null,null,"ANO",505,null,"2x týdně",null,null,null,null,null,null,null,null,null,null,null,null,505]
["Anti HBc IgG +IgM",null,null,null,null,"ANO",442,null,"2x týdně",null,null,null,null,null,null,null,null,null,null,null,null,442]
["Anti HBc IgM",null,null,null,null,"ANO",38,null,"2x týdně",null,null,null,null,null,null,null,null,null,null,null,null,38]
["Anti HBc IgM",null,null,null,null,"ANO",38,null,"2x týdně",null,null,null,null,null,null,null,null,null,null,null,null,38]
["HCV  (Ag/Ab)",null,null,null,null,"ANO",511,null,"2x týdně",null,null,null,null,null,null,null,null,null,null,null,null,511]
["HIV-1 (protilátky)",null,null,null,null,"ANO",445,null,"2x týdně",null,null,null,null,null,null,null,null,null,null,null,null,{"$f":"C171+G171+K171+O171+S171","v":445}]
["Ab/Treponema screen",null,null,null,null,"ANO",860,null,"2x týdně",null,null,null,null,null,null,null,null,null,null,null,null,860]
["Ab/CMV IgG kvantit.",null,null,null,null,"ANO",215,null,"2x týdně",null,null,null,null,null,null,null,null,null,null,null,null,215]
["Ab/CMV IgM",null,null,null,null,"ANO",215,null,"2x týdně",null,null,null,null,null,null,null,null,null,null,null,null,215]
["CMV avidita",null,null,null,null,"ANO",10,null,"2x týdně",null,null,null,null,null,null,null,null,null,null,null,null,10]
["Ab/Toxoplazma IgG kvant.",null,null,null,null,"ANO",86,null,"2x týdně",null,null,null,null,null,null,null,null,null,null,null,null,86]
["Ab/Toxopl.IgM",null,null,null,null,"ANO",86,null,"2x týdně",null,null,null,null,null,null,null,null,null,null,null,null,86]
["Ab/SARS-COV-2-IgG",null,null,null,null,"ANO",null,"ANO",365,null,null,null,null,null,null,null,null,null,null,null,null,0]
[null,"Počet požadovaných metod - Pracoviště Náchod",null,null,null,"Počet požadovaných metod - Pracoviště Rychnov n/K",null,null,null,"Počet požadovaných metod - Pracoviště Broumov",null,null,null,"Počet požadovaných metod - Pracoviště Jaroměř",null,null,null,"Počet požadovaných metod - Pracoviště Opočno"]
["Náchod",{"$f":"COUNTIF(B3:B178,\"ANO\")","v":135}]
["Rychnov nad Kněžnou",null,null,null,null,{"$f":"COUNTIF(F3:F178,\"ANO\")","v":141}]
["Broumov",null,null,null,null,null,null,null,null,{"$f":"COUNTIF(J3:J178,\"ANO\")","v":55}]
["Jaroměř",null,null,null,null,null,null,null,null,null,null,null,null,{"$f":"COUNTIF(N3:N178,\"ANO\")","v":45}]
["Opočno",null,null,null,null,null,null,null,null,null,null,null,null,null,null,null,null,{"$f":"COUNTIF(R3:R178,\"ANO\")","v":54}]